bitfinex/quotes_BTCUSD_20250206
["timestamp","ask_amount","ask_price","bid_price","bid_amount"]
[1738858333549,0.50143825,97471.0,97470.0,0.0061068]
[1738858334800,0.82183825,97471.0,97470.0,0.0061068]
[1738858335010,0.43323616,97471.0,97470.0,0.0061068]
[1738858335372,0.3204,97471.0,97470.0,0.1599998]
[1738858335573,0.153868,97486.0,97471.0,0.153891]
[1738858335767,0.01014547,97479.0,97470.0,0.01398071]
[1738858335968,0.15,97484.0,97472.0,0.01311775]
[1738858336168,0.25250365,97484.0,97473.0,0.153887]
[1738858336325,0.25250365,97484.0,97473.0,0.16371945]
[1738858336728,0.10250365,97483.0,97473.0,0.00983245]
[1738858337117,0.3204,97488.0,97487.0,0.153866]
[1738858337546,0.3204,97488.0,97487.0,0.16366737]
[1738858337928,0.3204,97488.0,97487.0,0.16693449]
[1738858338541,0.3204,97488.0,97487.0,0.17493449]
[1738858339049,0.3204,97488.0,97487.0,0.17693449]
[1738858340221,8.063e-05,97489.0,97488.0,0.153865]
[1738858340430,8.063e-05,97489.0,97488.0,0.15489062]
[1738858340636,8.063e-05,97489.0,97488.0,0.16692552]
[1738858340780,8.063e-05,97489.0,97488.0,0.01306052]
[1738858341209,8.063e-05,97489.0,97488.0,0.153865]
[1738858341405,8.063e-05,97489.0,97488.0,0.00977695]
[1738858341593,8.063e-05,97489.0,97488.0,0.01]
[1738858341594,0.42298428,97489.0,97488.0,0.01]
[1738858342281,0.8281361,97489.0,97488.0,0.01]
[1738858342488,0.8738361,97489.0,97488.0,0.01]
[1738858342688,0.8738361,97489.0,97488.0,0.008]
[1738858342913,0.89469789,97489.0,97488.0,0.008]
[1738858343120,0.89469789,97489.0,97488.0,0.009]
[1738858343731,0.89469789,97489.0,97488.0,1e-08]
[1738858344297,0.89469789,97489.0,97488.0,0.00200001]
[1738858344535,0.173,97488.0,97470.0,0.0001068]
[1738858344748,0.00022428,97492.0,97470.0,0.0001068]
[1738858344749,0.00022428,97492.0,97491.0,0.08191895]
[1738858344954,0.00022428,97492.0,97491.0,0.23408543]
[1738858345174,0.00022428,97492.0,97491.0,0.23816442]
[1738858345604,0.00022428,97492.0,97491.0,0.08430442]
[1738858345814,0.00022428,97492.0,97491.0,0.00510442]
[1738858345815,0.2670162,97492.0,97491.0,0.00510442]
[1738858346022,0.2710162,97492.0,97491.0,0.00753488]
[1738858346143,0.26058593,97492.0,97491.0,0.001]
[1738858346548,0.15808228,97492.0,97491.0,0.001]
[1738858346754,0.00422428,97492.0,97491.0,0.001]
[1738858347400,0.205147,97491.0,97471.0,0.00018743]
[1738858347614,0.10250365,97490.0,97471.0,0.0012133]
[1738858347822,0.10250365,97490.0,97477.0,0.153881]
[1738858348024,0.10250365,97490.0,97476.0,0.205177]
[1738858348142,0.10250365,97490.0,97478.0,0.16174306]
[1738858348345,0.10250365,97490.0,97478.0,0.00786306]
[1738858348729,0.10250365,97490.0,97479.0,0.205172]
[1738858348730,0.008,97490.0,97479.0,0.205172]
[1738858348939,0.008,97490.0,97472.0,0.205187]
[1738858349112,0.003,97490.0,97485.0,0.153869]
[1738858349348,0.003,97490.0,97480.0,0.00654983]
[1738858349349,0.205072,97527.0,97489.0,0.08191895]
[1738858349550,0.205072,97527.0,97486.0,0.10250365]
[1738858349551,0.20509,97518.0,97504.0,0.0767]
[1738858349757,0.01019493,97528.0,97504.0,0.07772539]
[1738858349956,0.153808,97524.0,97504.0,0.23705623]
[1738858350130,0.153815,97520.0,97504.0,0.23705623]
[1738858350336,0.153813,97522.0,97504.0,0.23705623]
[1738858350490,0.153813,97521.0,97504.0,0.23705623]
[1738858350696,0.20508,97523.0,97504.0,0.23705623]
[1738858350922,0.153814,97521.0,97504.0,0.23705623]
[1738858351130,0.00122428,97505.0,97504.0,0.24505623]
[1738858351327,0.00022428,97505.0,97504.0,0.23705623]
[1738858351674,0.00122428,97505.0,97504.0,0.24505623]
[1738858351826,0.0012705,97505.0,97504.0,0.24805623]
[1738858352208,0.0012705,97505.0,97504.0,0.01751723]
[1738858352605,0.0012705,97505.0,97504.0,0.011]
[1738858352811,0.0012705,97505.0,97504.0,0.01598975]
[1738858353418,0.0002705,97505.0,97504.0,0.00798975]
[1738858353630,0.0002705,97505.0,97504.0,0.00498975]
[1738858353836,0.0012705,97505.0,97504.0,0.162839]
[1738858354052,0.0002705,97505.0,97504.0,0.1635369]
[1738858354428,0.0012705,97505.0,97504.0,0.1725369]
[1738858354633,0.0012705,97505.0,97504.0,0.1685369]
[1738858355037,0.0012705,97505.0,97504.0,0.0146979]
[1738858355237,0.1541085,97505.0,97504.0,0.0056979]
[1738858355443,0.0002705,97505.0,97494.0,0.205138]
[1738858355650,0.0002705,97505.0,97504.0,0.012]
[1738858355651,0.1551085,97505.0,97504.0,0.012]
[1738858356050,0.33113935,97505.0,97504.0,0.012]
[1738858356282,0.29076342,97505.0,97504.0,0.012]
[1738858356534,0.44076342,97505.0,97504.0,0.012]
[1738858356723,0.46013949,97505.0,97504.0,0.003]
[1738858357111,0.53903949,97505.0,97504.0,0.012]
[1738858357309,0.53803949,97505.0,97504.0,0.003]
[1738858357467,0.173,97504.0,97471.0,0.2052958]
[1738858357679,0.153865,97488.0,97478.0,0.15388]
[1738858357876,0.153865,97488.0,97479.0,0.00572216]
[1738858358076,0.15387,97485.0,97479.0,0.00572216]
[1738858358277,0.03079784,97505.0,97480.0,0.01102583]
[1738858358561,0.0002705,97505.0,97504.0,0.236439]
[1738858358969,0.0002705,97505.0,97504.0,0.24213205]
[1738858359185,0.0002705,97505.0,97504.0,0.3446357]
[1738858359395,0.0002705,97505.0,97504.0,0.35493437]
[1738858360387,0.0002705,97505.0,97504.0,0.50493437]
[1738858360940,0.0002705,97505.0,97504.0,0.50593437]
[1738858361268,0.0042705,97505.0,97504.0,0.50493437]
[1738858361669,0.0082705,97505.0,97504.0,0.50593437]
[1738858361846,0.0002705,97505.0,97504.0,0.50493437]
[1738858363205,0.0002705,97505.0,97504.0,0.50593437]
[1738858363427,0.0042705,97505.0,97504.0,0.50593437]
[1738858364169,0.0042705,97505.0,97504.0,0.50821159]
[1738858364603,0.0002705,97505.0,97504.0,0.50721159]
[1738858364778,0.0042705,97505.0,97504.0,0.50721159]
[1738858366277,0.01028228,97548.0,97527.0,0.153803]
[1738858366491,0.00015302,97528.0,97527.0,0.15946928]
[1738858366863,0.00015302,97528.0,97527.0,0.16049446]
[1738858367248,0.00015302,97528.0,97527.0,0.15946928]
[1738858367683,0.00015302,97528.0,97527.0,0.16049449]
[1738858367887,0.00415302,97528.0,97527.0,0.16149449]
[1738858368051,0.00415302,97528.0,97527.0,0.16046928]
[1738858368450,0.00815302,97528.0,97527.0,0.16146928]
[1738858369552,0.00015302,97528.0,97527.0,0.15946928]
[1738858369764,0.00015302,97528.0,97527.0,0.16049449]
[1738858370047,0.00015302,97528.0,97527.0,0.16149449]
[1738858370212,0.00015302,97528.0,97527.0,0.16049449]
[1738858370414,0.00015302,97528.0,97527.0,0.00566628]
[1738858370618,0.00015302,97528.0,97527.0,0.00666628]
[1738858370820,0.00015302,97528.0,97527.0,0.001]
[1738858371017,0.00015302,97528.0,97527.0,0.16046204]
[1738858371234,0.00015302,97528.0,97527.0,0.153803]
[1738858371385,0.00015302,97528.0,97527.0,0.1594554]
[1738858371592,0.00015302,97528.0,97527.0,0.16048067]
[1738858371803,0.00015302,97528.0,97527.0,0.16148067]
[1738858372817,0.00015302,97528.0,97527.0,0.26398432]
[1738858373017,0.00015302,97528.0,97527.0,0.26422001]
[1738858373221,0.00115302,97528.0,97527.0,0.26522001]
[1738858374025,0.00215302,97528.0,97527.0,0.26622001]
[1738858374226,0.00615302,97528.0,97527.0,0.26622001]
[1738858374633,0.00215302,97528.0,97527.0,0.26622001]
[1738858375075,0.00615302,97528.0,97527.0,0.26622001]
[1738858375455,0.00215302,97528.0,97527.0,0.26622001]
[1738858375901,0.00615302,97528.0,97527.0,0.26622001]
[1738858376101,0.00415302,97528.0,97527.0,0.26422001]
[1738858376422,0.00515302,97528.0,97527.0,0.26522001]
[1738858376757,0.00515302,97528.0,97527.0,0.34412001]
[1738858376959,0.00515302,97528.0,97527.0,0.49412001]
[1738858377300,0.00115302,97528.0,97527.0,0.54402001]
[1738858377501,0.00515302,97528.0,97527.0,0.54402001]
[1738858378065,0.00115302,97528.0,97527.0,0.54402001]
[1738858378262,0.00115302,97528.0,97527.0,0.56310604]
[1738858378904,0.00115302,97528.0,97527.0,0.57265226]
[1738858379119,0.00515302,97528.0,97527.0,0.57265226]
[1738858379956,0.00252726,97528.0,97527.0,0.57265226]
[1738858380162,0.00022428,97563.0,97527.0,0.57265226]
[1738858380163,0.00022428,97563.0,97528.0,0.16]
[1738858380339,0.00022428,97563.0,97528.0,0.26352849]
[1738858380557,0.00076888,97529.0,97528.0,0.29339583]
[1738858380962,0.00076888,97529.0,97528.0,0.30294205]
[1738858381447,0.00176888,97529.0,97528.0,0.30294205]
[1738858381686,0.00176888,97529.0,97528.0,0.32202808]
[1738858381867,8.8e-07,97529.0,97528.0,0.36257909]
[1738858382272,8.8e-07,97529.0,97528.0,0.35303287]
[1738858382835,8.8e-07,97529.0,97528.0,0.27948186]
[1738858383470,0.153769,97549.0,97540.0,0.153781]
[1738858383643,0.04716288,97563.0,97541.0,0.0078648]
[1738858383828,0.153764,97552.0,97543.0,0.153776]
[1738858384023,0.153766,97551.0,97544.0,0.00785992]
[1738858384264,0.153766,97551.0,97543.0,0.153777]
[1738858384466,0.204999,97561.0,97544.0,0.00785992]
[1738858384679,0.153764,97552.0,97544.0,0.153776]
[1738858384879,0.10250365,97560.0,97544.0,0.153776]
[1738858384880,0.153766,97551.0,97545.0,0.00785829]
[1738858385350,0.10250365,97560.0,97545.0,0.00785829]
[1738858385351,0.153772,97547.0,97545.0,0.00785829]
[1738858385554,0.023,97557.0,97530.0,0.08191895]
[1738858385692,0.153776,97545.0,97537.0,0.153787]
[1738858386065,0.205017,97553.0,97542.0,0.153779]
[1738858386416,0.153773,97546.0,97544.0,0.001]
[1738858386581,0.153773,97546.0,97543.0,0.00655129]
[1738858386809,0.205024,97550.0,97538.0,0.153785]
[1738858386958,0.153778,97543.0,97537.0,0.001]
[1738858387163,0.10250365,97550.0,97530.0,0.08191895]
[1738858387366,0.0809,97548.0,97519.0,0.08191895]
[1738858387566,0.355031,97546.0,97544.0,0.001]
[1738858387743,0.355031,97546.0,97520.0,0.08191895]
[1738858387744,0.10250365,97545.0,97520.0,0.08191895]
[1738858387950,0.153806,97525.0,97520.0,0.08191895]
[1738858388158,0.0486,97533.0,97520.0,0.08191895]
[1738858388422,0.0486,97533.0,97513.0,0.00102538]
[1738858388621,0.02090768,97549.0,97521.0,0.00102538]
[1738858388775,0.0465,97550.0,97521.0,0.00102538]
[1738858388953,0.0465,97550.0,97522.0,0.10250365]
[1738858389165,0.0465,97550.0,97547.0,0.153772]
[1738858389355,0.153758,97556.0,97537.0,0.001]
[1738858389627,0.10250365,97555.0,97528.0,0.0001068]
[1738858389807,0.205015,97554.0,97528.0,0.00113196]
[1738858390021,0.10250365,97555.0,97529.0,0.00102516]
[1738858390162,0.10250365,97555.0,97550.0,0.153766]
[1738858390505,0.153765,97552.0,97542.0,0.153778]
[1738858390708,0.153765,97552.0,97544.0,0.153776]
[1738858390931,0.30751765,97555.0,97532.0,0.153794]
[1738858390932,0.10250365,97555.0,97532.0,0.153794]
[1738858391050,0.09069489,97558.0,97530.0,0.00958355]
[1738858391051,0.16971498,97550.0,97530.0,0.00958355]
[1738858391250,0.205027,97548.0,97531.0,0.205063]
[1738858391511,0.153773,97547.0,97534.0,0.205055]
[1738858391892,0.153773,97547.0,97538.0,0.153785]
[1738858392096,0.153773,97547.0,97531.0,0.25489691]
[1738858392097,0.004,97555.0,97553.0,0.153762]
[1738858392495,0.0001386,97558.0,97557.0,0.153756]
[1738858392942,0.0001386,97558.0,97554.0,0.01916689]
[1738858393355,0.0001386,97558.0,97557.0,0.00958355]
[1738858393769,0.0001386,97558.0,97557.0,0.01519381]
[1738858394126,0.0011386,97558.0,97557.0,0.01519381]
[1738858394331,0.0001386,97558.0,97557.0,0.01519381]
[1738858394560,0.0001386,97558.0,97557.0,0.01258355]
[1738858394959,0.0001386,97558.0,97557.0,0.01819381]
[1738858395369,0.0001386,97558.0,97557.0,0.01258355]
[1738858396388,0.0001386,97558.0,97557.0,0.01858355]
[1738858396741,0.0001386,97558.0,97557.0,0.009]
[1738858396946,0.0001386,97558.0,97557.0,0.01461026]
[1738858397147,0.13064246,97559.0,97557.0,0.01461026]
[1738858397554,0.13064246,97559.0,97557.0,0.009]
[1738858398005,0.13064246,97559.0,97557.0,0.006]
[1738858398180,0.153754,97558.0,97557.0,0.003]
[1738858398963,0.16190923,97561.0,97555.0,0.153758]
[1738858399231,0.153751,97560.0,97553.0,0.153761]
[1738858399428,0.153751,97560.0,97556.0,0.00561142]
[1738858399623,0.153751,97560.0,97554.0,0.15376]
[1738858399785,0.153751,97560.0,97557.0,0.01061026]
[1738858399985,0.153751,97560.0,97554.0,0.15376]
[1738858400235,0.153751,97560.0,97558.0,0.0056091]
[1738858400387,0.153751,97560.0,97554.0,0.15376]
[1738858400598,0.153751,97560.0,97559.0,0.00560794]
[1738858400793,0.153751,97560.0,97557.0,0.003]
[1738858401042,0.128751,97560.0,97559.0,0.00560794]
[1738858401349,0.128751,97560.0,97554.0,0.15676]
[1738858401692,0.128751,97560.0,97555.0,0.00561259]
[1738858401888,0.00828198,97561.0,97555.0,0.00561259]
[1738858402098,0.20522128,97563.0,97557.0,0.003]
[1738858402099,0.153754,97558.0,97557.0,0.003]
[1738858402323,0.153754,97558.0,97557.0,0.0031067]
[1738858402749,0.25625765,97558.0,97557.0,0.0031067]
[1738858402919,0.49675352,97558.0,97557.0,0.0031067]
[1738858403280,0.173,97557.0,97554.0,0.005]
[1738858403396,0.176775,97545.0,97528.0,0.0001068]
[1738858403602,0.153805,97526.0,97525.0,0.08149035]
[1738858404043,0.153805,97526.0,97525.0,0.00658295]
[1738858404456,0.153794,97533.0,97507.0,0.00113221]
[1738858404633,0.1130414,97540.0,97525.0,0.153805]
[1738858404634,0.25629865,97532.0,97525.0,0.153805]
[1738858404832,0.007,97526.0,97525.0,0.154805]
[1738858405420,0.01,97526.0,97525.0,0.001]
[1738858405593,0.01,97526.0,97525.0,0.154806]
[1738858405736,0.163805,97526.0,97525.0,0.001]
[1738858406790,0.01,97526.0,97525.0,0.001]
[1738858406986,0.163805,97526.0,97525.0,0.001]
[1738858407941,0.17205769,97526.0,97525.0,0.001]
[1738858408588,0.01825269,97526.0,97525.0,0.001]
[1738858408923,0.17205769,97526.0,97525.0,0.001]
[1738858411300,0.01825269,97526.0,97525.0,0.00665163]
[1738858411649,0.01825269,97526.0,97525.0,0.16045763]
[1738858411824,0.01825269,97526.0,97525.0,0.00665163]
[1738858412208,0.17205769,97526.0,97525.0,0.00665163]
[1738858412734,0.52366134,97526.0,97525.0,0.001]
[1738858413496,0.54433214,97526.0,97525.0,0.001]
[1738858413705,0.153833,97508.0,97507.0,0.00056878]
[1738858414495,0.205105,97511.0,97507.0,0.00056878]
[1738858414689,0.153832,97509.0,97507.0,0.00056878]
[1738858414892,0.3181354,97517.0,97508.0,0.00441953]
[1738858415097,0.10502349,97526.0,97525.0,0.0001067]
[1738858415321,0.73940614,97526.0,97525.0,0.0001067]
[1738858415533,0.79564403,97526.0,97525.0,0.0001067]
[1738858415736,0.73940614,97526.0,97525.0,0.0001067]
[1738858416953,0.73940614,97526.0,97507.0,0.00156878]
[1738858416954,0.303833,97508.0,97507.0,0.00056878]
[1738858417179,0.42933665,97508.0,97507.0,0.00056878]
[1738858417631,0.50443665,97508.0,97507.0,0.00056878]
[1738858418511,0.50443665,97508.0,97507.0,0.00256878]
[1738858418847,0.52455717,97508.0,97507.0,0.00056878]
[1738858419057,0.62145064,97508.0,97507.0,0.00056878]
[1738858419506,0.62245064,97508.0,97507.0,0.00456878]
[1738858419678,0.62145064,97508.0,97507.0,0.00056878]
[1738858419883,0.57335717,97508.0,97507.0,0.00056878]
[1738858420085,0.57435717,97508.0,97507.0,0.00456878]
[1738858420286,0.57435717,97508.0,97507.0,0.00056878]
[1738858420491,0.57435717,97508.0,97507.0,0.00356878]
[1738858420697,0.58261043,97508.0,97507.0,0.00356878]
[1738858420892,0.58261043,97508.0,97507.0,0.00056878]
[1738858421299,0.58261043,97508.0,97507.0,0.00256878]
[1738858422270,0.45871043,97508.0,97507.0,0.00256878]
[1738858422680,0.26558991,97508.0,97507.0,0.00256878]
[1738858423268,0.41558991,97508.0,97507.0,0.00256878]
[1738858423872,0.75898991,97508.0,97507.0,0.00256878]
[1738858426570,0.32965326,97508.0,97507.0,0.00256878]
[1738858426777,0.3214,97508.0,97507.0,0.15640378]
[1738858427172,0.3214,97508.0,97507.0,0.00700057]
[1738858427815,0.3214,97508.0,97507.0,0.16083557]
[1738858428029,0.3214,97508.0,97507.0,0.15883557]
[1738858428204,0.3214,97508.0,97507.0,0.16083557]
[1738858429043,0.3204,97508.0,97507.0,0.16083557]
[1738858429218,0.3214,97508.0,97507.0,0.01300057]
[1738858429657,0.3214,97508.0,97507.0,0.00856878]
[1738858429807,0.3214,97508.0,97507.0,0.01300057]
[1738858430014,0.475233,97508.0,97507.0,0.01300057]
[1738858430421,0.475233,97508.0,97507.0,0.01100057]
[1738858430782,0.475233,97508.0,97507.0,0.01056878]
[1738858431989,0.40733665,97508.0,97507.0,0.01056878]
[1738858432190,0.43033665,97508.0,97507.0,0.01056878]
[1738858433583,0.42933665,97508.0,97507.0,0.00456878]
[1738858433786,0.42933665,97508.0,97507.0,0.00156878]
[1738858433981,0.42933665,97508.0,97507.0,0.00256878]
[1738858435200,0.42727499,97508.0,97507.0,0.00256878]
[1738858435523,0.45027499,97508.0,97507.0,0.00256878]
[1738858437117,0.45027499,97508.0,97490.0,0.0001068]
[1738858437118,0.173,97507.0,97490.0,0.0001068]
[1738858437336,0.30386,97491.0,97490.0,0.00015302]
[1738858437542,0.40636365,97491.0,97490.0,0.00015302]
[1738858437983,0.55821208,97491.0,97490.0,0.00015302]
[1738858438368,0.57894114,97491.0,97490.0,0.00015302]
[1738858439132,0.57894114,97491.0,97490.0,0.00215302]
[1738858439566,0.58917686,97491.0,97490.0,0.00215302]
[1738858439785,0.59017686,97491.0,97490.0,0.00515302]
[1738858440195,0.59017686,97491.0,97490.0,0.00115302]
[1738858440394,0.58917686,97491.0,97490.0,0.00115302]
[1738858440638,0.58917686,97491.0,97490.0,0.00015302]
[1738858440784,0.58917686,97491.0,97490.0,0.00115302]
[1738858441964,0.58917686,97491.0,97490.0,0.00015302]
[1738858442466,0.59017686,97491.0,97490.0,0.00015302]
[1738858442671,0.59017686,97491.0,97490.0,0.00115302]
[1738858442871,0.58917686,97491.0,97490.0,0.00115302]
[1738858443043,0.41659937,97491.0,97490.0,0.00115302]
[1738858443496,0.31409572,97491.0,97490.0,0.00115302]
[1738858443665,0.16023572,97491.0,97490.0,0.00215302]
[1738858443871,0.16409572,97491.0,97490.0,0.00215302]
[1738858444080,0.16409572,97491.0,97490.0,0.00110741]
[1738858444454,0.16409572,97491.0,97490.0,0.00010741]
[1738858444657,0.48449572,97491.0,97490.0,0.00010741]
[1738858445071,0.33063572,97491.0,97490.0,0.00010741]
[1738858445271,0.33063572,97491.0,97490.0,0.00110741]
[1738858445448,0.33063572,97491.0,97490.0,0.00010741]
[1738858445646,0.33063572,97491.0,97490.0,0.00455952]
[1738858445847,0.33063572,97491.0,97490.0,0.00410741]
[1738858446053,0.3204,97491.0,97490.0,0.00410741]
[1738858446259,0.1130414,97530.0,97490.0,0.00410741]
[1738858446260,0.01038234,97508.0,97492.0,0.1979]
[1738858446584,0.02039014,97525.0,97492.0,0.1979]
[1738858446585,0.00022428,97525.0,97517.0,0.0807]
[1738858446753,0.00022428,97525.0,97518.0,0.00102534]
[1738858446961,0.00022428,97525.0,97519.0,0.00442289]
[1738858447578,0.00022428,97525.0,97517.0,0.0807]
[1738858447842,0.00022428,97525.0,97520.0,0.00442242]
[1738858448064,0.153808,97524.0,97517.0,0.0807]
[1738858448274,0.153808,97524.0,97521.0,0.00442151]
[1738858448473,0.00022428,97525.0,97517.0,0.0807]
[1738858448649,0.00022428,97525.0,97522.0,0.00442061]
[1738858449008,0.00022428,97525.0,97520.0,0.153813]
[1738858449270,0.00022428,97525.0,97523.0,0.0044197]
[1738858449480,0.001,97524.0,97521.0,0.153812]
[1738858449659,0.001,97524.0,97520.0,0.153814]
[1738858449860,0.153809,97523.0,97522.0,0.008]
[1738858450037,0.001,97524.0,97522.0,0.008]
[1738858450286,0.00122428,97525.0,97522.0,0.004]
[1738858450423,0.153808,97524.0,97523.0,0.004]
[1738858451074,0.00222428,97525.0,97523.0,0.004]
[1738858451486,0.00222428,97525.0,97524.0,0.153808]
[1738858451689,0.00022428,97525.0,97524.0,0.153808]
[1738858452439,0.00022428,97525.0,97523.0,0.15483433]
[1738858452621,0.00022428,97525.0,97522.0,0.004]
[1738858452622,0.00122428,97525.0,97524.0,0.157808]
[1738858453042,0.00122428,97525.0,97524.0,0.161808]
[1738858453449,0.00022428,97525.0,97524.0,0.15483328]
[1738858453901,0.00122428,97525.0,97524.0,0.16283328]
[1738858454418,0.00122428,97525.0,97524.0,0.16724596]
[1738858455023,0.00122428,97525.0,97524.0,0.01241268]
[1738858455455,0.00122428,97525.0,97524.0,0.16622068]
[1738858456230,0.00122428,97525.0,97524.0,0.26974959]
[1738858456440,0.00122428,97525.0,97524.0,0.34762433]
[1738858457105,0.00122428,97525.0,97524.0,0.35362433]
[1738858457276,0.00122428,97525.0,97524.0,0.34762433]
[1738858457482,0.00122428,97525.0,97524.0,0.36801649]
[1738858457856,0.00122428,97525.0,97524.0,0.36401649]
[1738858458054,0.00022428,97525.0,97524.0,0.35001649]
[1738858458505,0.00122428,97525.0,97524.0,0.35701649]
[1738858458698,0.00022428,97525.0,97524.0,0.35001649]
[1738858458858,0.00022428,97525.0,97524.0,0.35101649]
[1738858459059,0.00922428,97525.0,97524.0,0.35101649]
[1738858459356,0.01122428,97525.0,97524.0,0.35101649]
[1738858459779,0.01122428,97525.0,97524.0,0.51101649]
[1738858460386,0.01122428,97525.0,97524.0,0.50101649]
[1738858460590,0.01122428,97525.0,97524.0,0.51101649]
[1738858461042,0.01122428,97525.0,97524.0,0.50101649]
[1738858461855,0.01122428,97525.0,97524.0,0.50224967]
[1738858462850,0.01122428,97525.0,97524.0,0.51224967]
[1738858463048,0.01122428,97525.0,97524.0,0.50224967]
[1738858463250,0.00022408,97560.0,97558.0,0.153754]
[1738858463504,0.00022408,97560.0,97558.0,0.15968433]
[1738858464295,0.00022408,97560.0,97558.0,0.1586595]
[1738858464489,0.00027028,97559.0,97558.0,0.15968434]
[1738858465465,0.00027028,97559.0,97558.0,0.16068434]
[1738858465701,0.00227028,97559.0,97558.0,0.16068434]
[1738858465839,0.00027028,97559.0,97558.0,0.16068434]
[1738858466063,0.00027028,97559.0,97558.0,0.1586595]
[1738858466264,0.01327028,97559.0,97558.0,0.1596595]
[1738858467414,0.01327028,97559.0,97558.0,0.16068442]
[1738858469792,0.01327028,97559.0,97558.0,0.26318807]
[1738858469949,0.01327028,97559.0,97558.0,0.26216315]
[1738858470300,0.01327028,97559.0,97558.0,0.34416315]
[1738858470414,0.00927028,97559.0,97558.0,0.34416315]
[1738858471265,0.00027028,97559.0,97558.0,0.50316315]
[1738858471693,0.00727028,97559.0,97558.0,0.50416315]
[1738858471910,0.01127028,97559.0,97558.0,0.50416315]
[1738858472037,0.01127028,97559.0,97558.0,0.51416315]
[1738858472234,0.01127028,97559.0,97558.0,0.52420287]
[1738858472443,0.00727028,97559.0,97558.0,0.51420287]
[1738858472644,0.00727028,97559.0,97558.0,0.52420287]
[1738858472851,0.00227028,97559.0,97558.0,0.52320287]
[1738858473300,0.00227028,97559.0,97558.0,0.54720287]
[1738858473301,0.00727028,97559.0,97558.0,0.54720287]
[1738858473708,0.00827028,97559.0,97558.0,0.54720287]
[1738858474446,0.00127028,97559.0,97558.0,0.54620287]
[1738858474866,0.00427028,97559.0,97558.0,0.54620287]
[1738858475242,0.00427028,97559.0,97558.0,0.55688287]
[1738858475441,0.00827028,97559.0,97558.0,0.55688287]
[1738858477549,0.00027028,97559.0,97558.0,0.55688287]
[1738858477955,0.00327028,97559.0,97558.0,0.55688287]
[1738858478584,0.00627028,97559.0,97558.0,0.55688287]
[1738858478751,0.00027028,97559.0,97558.0,0.55688287]
[1738858479158,0.00427028,97559.0,97558.0,0.55688287]
[1738858479582,0.00427028,97559.0,97558.0,0.53688287]
[1738858479958,0.00427028,97559.0,97558.0,0.55688287]
[1738858483352,0.00427028,97559.0,97558.0,0.50320287]
[1738858484345,0.00427028,97559.0,97558.0,0.27120287]
[1738858485443,0.00027028,97559.0,97558.0,0.27120287]
[1738858485651,0.00927028,97559.0,97558.0,0.27220287]
[1738858486002,0.00927028,97559.0,97558.0,0.26216315]
[1738858486176,0.00827028,97559.0,97558.0,0.26216315]
[1738858489482,0.00849456,97559.0,97558.0,0.26216315]
[1738858490523,0.00849456,97559.0,97558.0,0.41216315]
[1738858491167,0.00849456,97559.0,97558.0,0.42216315]
[1738858493778,9.2e-07,97563.0,97562.0,0.394448]
[1738858494002,0.00046316,97563.0,97562.0,0.52429335]
[1738858494905,0.00146316,97563.0,97562.0,0.52429335]
[1738858495316,0.00746316,97563.0,97562.0,0.52429335]
[1738858495498,0.00146316,97563.0,97562.0,0.52429335]
[1738858496018,0.00746316,97563.0,97562.0,0.52429335]
[1738858496225,0.00646316,97563.0,97562.0,0.54345211]
[1738858496598,0.00746316,97563.0,97562.0,0.54345211]
[1738858496799,0.0002,97569.0,97562.0,0.54345211]
[1738858496800,0.0002,97569.0,97568.0,0.163738]
[1738858497006,0.0002,97569.0,97568.0,0.29460052]
[1738858497205,0.0002,97569.0,97568.0,0.31273473]
[1738858497618,0.0002,97569.0,97568.0,0.49289327]
[1738858497859,0.0002,97569.0,97568.0,0.50289327]
[1738858498725,6.069e-05,97600.0,97594.0,0.153697]
[1738858498875,0.00013859,97590.0,97580.0,0.1130414]
[1738858499055,0.00013859,97590.0,97589.0,0.153705]
[1738858499261,0.00013859,97590.0,97570.0,0.2630414]
[1738858499458,0.00013859,97590.0,97589.0,0.00430999]
[1738858499666,0.00013859,97590.0,97589.0,0.01915876]
[1738858499874,0.00013859,97590.0,97589.0,0.02346875]
[1738858500748,0.00313859,97590.0,97589.0,0.12699698]
[1738858501166,0.00013859,97590.0,97589.0,0.12699698]
[1738858501564,0.00313859,97590.0,97589.0,0.12799698]
[1738858501964,0.00313859,97590.0,97589.0,0.10883822]
[1738858502181,0.00313859,97590.0,97589.0,0.10783822]
[1738858502599,0.00313859,97590.0,97589.0,0.11817093]
[1738858502917,0.00313859,97590.0,97589.0,0.10783822]
[1738858503116,0.00313859,97590.0,97589.0,0.10681364]
[1738858503117,0.00013859,97590.0,97589.0,0.10681364]
[1738858503315,0.00313859,97590.0,97589.0,0.10783809]
[1738858503576,0.00313859,97590.0,97589.0,0.00530999]
[1738858503789,0.12413859,97590.0,97589.0,0.00430999]
[1738858503990,0.12413859,97590.0,97570.0,0.3180204]
[1738858503991,0.12413859,97590.0,97560.0,0.19496035]
[1738858504181,0.12713859,97590.0,97589.0,0.001]
[1738858504537,0.12413859,97590.0,97589.0,0.00530986]
[1738858505106,0.12713859,97590.0,97589.0,0.00430986]
[1738858505466,0.153712,97585.0,97577.0,0.153724]
[1738858505668,0.153712,97585.0,97578.0,0.153722]
[1738858505845,0.33207859,97590.0,97578.0,0.0043217]
[1738858506291,0.153714,97584.0,97576.0,0.153725]
[1738858506513,0.12713859,97590.0,97579.0,0.0043208]
[1738858506739,0.204941,97589.0,97544.0,0.02064]
[1738858506925,0.15371,97586.0,97578.0,0.153722]
[1738858507203,0.12413859,97590.0,97589.0,0.006]
[1738858508318,0.12413859,97590.0,97570.0,0.20498]
[1738858508857,0.12413859,97590.0,97527.0,0.05740091]
[1738858508858,0.204961,97580.0,97574.0,0.00408864]
[1738858509031,0.082,97575.0,97574.0,0.00408864]
[1738858509387,0.082,97575.0,97559.0,0.08191895]
[1738858509537,0.082,97575.0,97561.0,0.004]
[1738858509747,0.153733,97572.0,97562.0,0.20909984]
[1738858509953,0.204972,97574.0,97563.0,0.204995]
[1738858510141,0.204972,97574.0,97564.0,0.00410103]
[1738858510331,0.239728,97575.0,97574.0,0.001]
[1738858510529,0.09600859,97575.0,97574.0,0.001]
[1738858510731,0.153729,97574.0,97566.0,0.15374]
[1738858510931,0.09200859,97575.0,97567.0,0.00409832]
[1738858511130,0.09200859,97575.0,97568.0,0.153738]
[1738858511131,0.002,97574.0,97568.0,0.153738]
[1738858511394,0.002,97574.0,97569.0,0.00409651]
[1738858511596,0.002,97574.0,97558.0,0.00022428]
[1738858511799,0.153752,97560.0,97558.0,0.00022428]
[1738858511973,0.204976,97572.0,97559.0,0.00499636]
[1738858512176,0.0454,97573.0,97568.0,0.153737]
[1738858512348,0.153734,97571.0,97569.0,0.00498473]